fUSD/lending_fUSD_20240708
["ID","MTS","AMOUNT","RATE_DAILY","PERIOD"]
[331526368,1720447107394,-500.0,0.00050958,120]
[331526369,1720447107499,-500.0,0.00050958,120]
[331526370,1720447107605,-500.0,0.00051232,120]
[331526371,1720447107712,-500.0,0.00051232,120]
[331526372,1720447107816,-500.0,0.00051232,120]
[331526373,1720447107921,-500.0,0.00051232,120]
[331526374,1720447108027,-500.0,0.00051232,120]
[331526375,1720447108133,-500.0,0.00051506,120]
[331526376,1720447108235,-500.0,0.00051506,120]
[331526377,1720447108338,-565.99204754,0.00051506,120]
[331526378,1720447108448,-500.0,0.00051506,120]
[331526379,1720447108574,-500.0,0.0005178,120]
[331526380,1720447108699,-500.0,0.0005178,120]
[331526381,1720447108812,-500.0,0.0005178,120]
[331526382,1720447108924,-170.405932,0.00052054,120]
[331526383,1720447109033,-635.84539887,0.00052054,120]
[331526384,1720447109145,-500.0,0.00052054,120]
[331526385,1720447109259,-151.0,0.00052054,120]
[331526386,1720447109376,-500.0,0.00052328,120]
[331526387,1720447109495,-500.0,0.00052602,120]
[331526388,1720447109613,-394.7,0.00052602,120]
[331526389,1720447109730,-500.0,0.00052876,120]
[331526390,1720447109850,-500.0,0.0005315,120]
[331526391,1720447109965,-500.0,0.00053424,120]
[331526392,1720447110076,-627.43,0.00053698,120]
[331526393,1720447110202,-400.0,0.0005997,30]
[331526394,1720447110305,-500.0,0.0005997,30]
[331526395,1720447110413,-170.405932,0.00061434,120]
[331526396,1720447110517,-151.0,0.00061434,120]
[331526397,1720447110623,-409.0,0.00065986,120]
[331526398,1720447110730,-300.0,0.0006657,90]
[331526399,1720447110837,-2907751.05828001,0.000666,30]
[331526400,1720447110941,-10000.0,0.000666,120]
[331526401,1720447111046,-209.34,0.000666,120]
[331526402,1720447111149,-500.0,0.000666,30]
[331526403,1720447111256,-500.0,0.000666,30]
[331526404,1720447111362,-500.0,0.000666,30]
[331526405,1720447111468,-500.0,0.000666,30]
[331526406,1720447111572,-500.0,0.000666,30]
[331526407,1720447111675,-500.0,0.000666,30]
[331526408,1720447111781,-500.0,0.000666,30]
[331526409,1720447111883,-500.0,0.000666,30]
[331526410,1720447111983,-500.0,0.000666,30]
[331526411,1720447112083,-661.0,0.000666,30]
[331526412,1720447112183,-316.55357782,0.000666,30]
[331526413,1720447112285,-151.0,0.000666,120]
[331526414,1720447112388,-151.0,0.000666,120]
[331526415,1720447112486,-151.0,0.000666,120]
[331526416,1720447112592,-218.666856,0.000666,120]
[331526417,1720447112701,-218.666856,0.000666,120]
[331526418,1720447112802,-262.489959,0.000666,120]
[331526419,1720447112900,-262.489959,0.000666,120]
[331526420,1720447113001,-151.0,0.000666,120]
[331526421,1720447113102,-151.0,0.000666,120]
[331526422,1720447113203,-151.0,0.000666,120]
[331526423,1720447113303,-151.0,0.000666,120]
[331526424,1720447113406,-151.0,0.000666,120]
[331526425,1720447113525,-170.405932,0.000666,120]
[331526426,1720447113648,-170.405932,0.000666,120]
[331526427,1720447113769,-173.0,0.00066788,120]
[331526428,1720447113882,-151.0,0.00066849,120]
[331526429,1720447113989,-186.13037961,0.000669,120]
[331526430,1720447114100,-10000.0,0.00067,120]
[331526431,1720447114215,-151.0,0.00067096,120]
[331526432,1720447114327,-2035.02,0.00067123,120]
[331526433,1720447114440,-999.0,0.00067123,120]
[331526434,1720447114551,-10000.0,0.000674,120]
[331526435,1720447114663,-9262.91760413,0.00067471,120]
[331526436,1720447114768,-1000.0,0.0006765,120]
[331526437,1720447114879,-25000.0,0.0006765,120]
[331526438,1720447114990,-10000.0,0.000677,120]
[331526439,1720447115097,-151.0,0.00067726,120]
[331526440,1720447115201,-10000.0,0.000678,120]
[331526441,1720447115307,-10000.0,0.00068,120]
[331526442,1720447115411,-10000.0,0.00068,120]
[331526443,1720447115515,-458.5053413,0.00068,120]
[331526444,1720447115619,-151.0,0.00068192,120]
[331526445,1720447115725,-10000.0,0.000682,120]
[331526446,1720447115833,-999.0,0.00068219,120]
[331526447,1720447115937,-151.0,0.00068356,120]
[331526448,1720447116044,-2035.02,0.00068493,120]
[331526449,1720447116597,-300.0,0.00068493,30]
[331526450,1720447116703,-500.0,0.00068493,120]
[331526451,1720447116807,-1238.0,0.00068493,30]
[331526452,1720447116915,-300.0,0.00068493,30]
[331526453,1720447117021,-150.0,0.00068493,30]
[331526454,1720447117127,-300.0,0.00068493,30]
[331526455,1720447117232,-300.0,0.00068493,30]
[331526456,1720447117342,-1000.0,0.00068493,30]
[331526457,1720447117455,-1000.0,0.00068493,30]
[331526458,1720447117699,500.0,0.00049589,120]
[331526459,1720447117817,500.0,0.00052054,120]
[331526460,1720447117928,500.0,0.00049863,120]
[331526461,1720447118041,500.0,0.00052328,120]
[331526462,1720447118152,177.6,0.00033151,120]
[331526463,1720447118262,500.0,0.00052602,120]
[331526464,1720447118378,500.0,0.00049315,120]
[331526465,1720447118505,500.0,0.00050136,120]
[331526466,1720447118637,500.0,0.00052876,120]
[331526467,1720447118762,177.6,0.00044384,120]
[331526468,1720447118875,500.0,0.00049589,120]
[331526469,1720447118996,500.0,0.0005315,120]
[331526470,1720447119132,177.6,0.00055616,120]
[331526471,1720447119269,500.0,0.00049863,120]
[331526472,1720447119404,339.24,0.00053424,120]
[331526473,1720447119538,150.0,0.00049315,30]
[331526474,1720447119663,500.0,0.00050136,120]
[331526475,1720447119782,177.6,0.00066849,120]
[331526476,1720447119906,500.0,0.0005041,120]
[331526477,1720447120024,500.0,0.0005041,120]
[331526478,1720447120150,500.0,0.00050684,120]
[331526479,1720447120387,500.0,0.00050958,120]
[331526480,1720447120508,500.0,0.00050684,120]
[331526481,1720447120633,503.75864147,0.00051232,120]
[331526482,1720447120746,500.0,0.00050958,120]
[331526483,1720447120866,500.0,0.00051232,120]
[331526484,1720447120989,500.0,0.00051506,120]
[331526485,1720447121114,500.0,0.0005178,120]
[331526486,1720447121233,270.28,0.00052054,120]
[331526487,1720447121369,500.0,0.00049315,120]
[331526488,1720447121513,500.0,0.00049589,120]
[331526489,1720447121654,500.0,0.00049863,120]
[331526490,1720447121800,522.34917798,0.00050136,120]
[331526491,1720447121948,500.0,0.00049315,120]
[331526492,1720447122069,500.0,0.00049589,120]
[331526493,1720447122197,500.0,0.00049315,120]
[331526494,1720447122320,554.09169849,0.00049863,120]
[331526495,1720447122462,500.0,0.00049589,120]
[331526496,1720447122713,151.0,0.000666,120]
[331526497,1720447122836,500.0,0.00049863,120]
[331526498,1720447122963,500.0,0.00050136,120]
[331526499,1720447123083,500.0,0.0005041,120]
[331526500,1720447123201,500.0,0.00050684,120]
[331526501,1720447123328,612.28,0.00049315,120]
[331526502,1720447123444,500.0,0.00050958,120]
[331526503,1720447123572,612.28,0.00049589,120]
[331526504,1720447123702,500.0,0.00051232,120]
[331526505,1720447123830,612.28,0.00049863,120]
[331526506,1720447123949,500.0,0.00051506,120]
[331526507,1720447124072,612.28,0.00050136,120]
[331526508,1720447124193,500.0,0.00049315,120]
[331526509,1720447124322,612.28,0.0005041,120]
[331526510,1720447124444,500.0,0.0005178,120]
[331526511,1720447124568,612.28,0.00050684,120]
[331526512,1720447124694,417.28,0.00052054,120]
[331526513,1720447124815,500.0,0.00049589,120]
[331526514,1720447124937,500.0,0.00049315,120]
[331526515,1720447125059,612.28,0.00050958,120]
[331526516,1720447125176,500.0,0.00049863,120]
[331526517,1720447125295,500.0,0.00049589,120]
[331526518,1720447125413,612.28,0.00051232,120]
[331526519,1720447125530,500.0,0.00050136,120]
[331526520,1720447125653,500.0,0.00049863,120]
[331526521,1720447125772,612.28,0.00051506,120]
[331526522,1720447125890,500.0,0.0005041,120]
[331526523,1720447126017,500.0,0.00050136,120]
[331526524,1720447126141,612.28,0.0005178,120]
[331526525,1720447126256,500.0,0.0005041,120]
[331526526,1720447126376,612.28,0.00052054,120]
[331526527,1720447126492,500.0,0.00050684,120]
[331526528,1720447126612,500.0,0.00050684,120]
[331526529,1720447126729,500.0,0.00049315,120]
[331526530,1720447126846,500.0,0.00050958,120]
[331526531,1720447126961,500.0,0.00050958,120]
[331526532,1720447127104,528.8,0.00050365,120]
[331526533,1720447127221,612.28,0.00052328,120]
[331526534,1720447127335,500.0,0.00049589,120]
[331526535,1720447127453,500.0,0.00051232,120]
[331526536,1720447127568,500.0,0.00051232,120]
[331526537,1720447127689,151.0,0.000666,120]
[331526538,1720447127895,612.28,0.00052602,120]
[331526539,1720447128012,500.0,0.00049863,120]
[331526540,1720447128132,428.01698072,0.00051506,120]
[331526541,1720447128252,506.84640222,0.00051506,120]
[331526542,1720447128367,500.0,0.00050136,120]
[331526543,1720447128498,500.0,0.0005041,120]
[331526544,1720447128626,612.28,0.00052876,120]
[331526545,1720447128756,500.0,0.00050684,120]
[331526546,1720447128877,612.28,0.0005315,120]
[331526547,1720447129004,612.28,0.00053424,120]
[331526548,1720447129127,612.28,0.00053698,120]
[331526549,1720447129256,500.0,0.00050958,120]
[331526550,1720447129384,612.28,0.00053972,120]
[331526551,1720447129517,500.0,0.00051232,120]
[331526552,1720447129651,612.28,0.00054246,120]
[331526553,1720447129768,500.0,0.00051506,120]
[331526554,1720447129886,612.28,0.0005452,120]
[331526555,1720447130005,500.0,0.00049315,120]
[331526556,1720447130118,500.0,0.0005178,120]
[331526557,1720447130229,612.28,0.00054794,120]
[331526558,1720447130339,500.0,0.00049589,120]
[331526559,1720447130447,500.0,0.00052054,120]
[331526560,1720447130558,612.28,0.00055068,120]
[331526561,1720447130671,500.0,0.00049863,120]
[331526562,1720447130786,500.0,0.00052328,120]
[331526563,1720447130901,612.28,0.00055342,120]
[331526564,1720447131017,454.08,0.00050136,120]
[331526565,1720447131135,500.0,0.00049315,120]
[331526566,1720447131251,500.0,0.00049589,120]
[331526567,1720447131365,500.0,0.00052602,120]
[331526568,1720447131479,612.44,0.00055616,120]
[331526569,1720447131595,500.0,0.00049863,120]
[331526570,1720447131712,500.0,0.00052876,120]
[331526571,1720447131825,528.8,0.00050365,120]
[331526572,1720447131940,500.0,0.00050136,120]
[331526573,1720447132144,500.0,0.0005315,120]
[331526574,1720447132273,500.0,0.00053424,120]
[331526575,1720447132389,500.0,0.0005041,120]
[331526576,1720447132523,500.0,0.00050684,120]
[331526577,1720447132641,496.97,0.00053698,120]
[331526578,1720447132759,500.0,0.00050958,120]
[331526579,1720447132887,500.0,0.00049315,120]
[331526580,1720447133010,502.99321704,0.00051232,120]
[331526581,1720447133124,500.0,0.00049589,120]
[331526582,1720447133238,500.0,0.00049863,120]
[331526583,1720447133362,500.0,0.00050136,120]
[331526584,1720447133494,500.0,0.0005041,120]
[331526585,1720447133622,500.0,0.00049315,120]
[331526586,1720447133752,500.0,0.00049589,120]
[331526587,1720447133881,561.93487021,0.00050684,120]
[331526588,1720447134021,500.0,0.00049863,120]
[331526589,1720447134140,307.790247,0.0004,30]
[331526590,1720447134267,500.0,0.00050136,120]
[331526591,1720447134405,500.0,0.0005041,120]
[331526592,1720447134538,500.0,0.00050684,120]
[331526593,1720447134673,500.0,0.00050958,120]
[331526594,1720447134819,502.23916833,0.00051232,120]
[331526595,1720447134960,500.0,0.00049315,120]
[331526596,1720447135089,500.0,0.00049589,120]
[331526597,1720447135218,500.0,0.00049863,120]
[331526598,1720447135345,150.0,0.00051506,30]
[331526599,1720447135460,500.0,0.00050136,120]
[331526600,1720447135577,500.0,0.0005041,120]
[331526601,1720447135699,500.0,0.00050684,120]
[331526602,1720447135822,500.0,0.00049315,120]
[331526603,1720447135949,500.0,0.00050958,120]
[331526604,1720447136071,500.0,0.00049589,120]
[331526605,1720447136200,500.0,0.00049315,120]
[331526606,1720447136325,244.57494035,0.00051232,120]
[331526607,1720447136447,500.0,0.00049589,120]
[331526608,1720447136577,500.0,0.00049315,120]
[331526609,1720447136711,500.0,0.00049863,120]
[331526610,1720447136832,500.0,0.00049863,120]
[331526611,1720447136957,500.0,0.00049589,120]
[331526612,1720447137071,500.0,0.00050136,120]
[331526613,1720447137188,500.0,0.00050136,120]
[331526614,1720447137316,500.0,0.00049863,120]
[331526615,1720447137434,500.0,0.0005041,120]
[331526616,1720447137555,500.0,0.00050136,120]
[331526617,1720447137680,500.0,0.0005041,120]
[331526618,1720447137799,500.0,0.00050684,120]
[331526619,1720447138010,500.0,0.0005041,120]
[331526620,1720447138124,500.0,0.00050684,120]
[331526621,1720447138237,500.0,0.00050958,120]
[331526622,1720447138348,528.8,0.00050365,120]
[331526623,1720447138465,500.0,0.00050684,120]
[331526624,1720447138598,500.0,0.00050958,120]
[331526625,1720447138731,500.0,0.00050958,120]
[331526626,1720447138858,500.0,0.00051232,120]
[331526627,1720447138980,500.0,0.00051232,120]
[331526628,1720447139110,504.26110065,0.00051232,120]
[331526629,1720447139239,304.34,0.00051506,120]
[331526630,1720447139383,500.0,0.00051506,120]
[331526631,1720447139519,500.0,0.0005178,120]
[331526632,1720447139676,500.0,0.00052054,120]
[331526633,1720447139819,500.0,0.00052328,120]
[331526634,1720447139948,500.0,0.00049315,120]
[331526635,1720447140078,500.0,0.00052602,120]
[331526636,1720447140226,500.0,0.00049589,120]
[331526637,1720447140374,500.0,0.00052876,120]
[331526638,1720447140503,500.0,0.00049863,120]
[331526639,1720447140630,500.0,0.0005315,120]
[331526640,1720447141035,500.0,0.00050136,120]
[331526641,1720447141150,500.0,0.00049315,120]
[331526642,1720447141266,500.0,0.00053424,120]
[331526643,1720447141385,500.0,0.0005041,120]
[331526644,1720447141500,500.0,0.00049589,120]
[331526645,1720447141615,500.0,0.00053698,120]
[331526646,1720447141734,500.0,0.00049863,120]
[331526647,1720447141850,500.0,0.00050684,120]
[331526648,1720447141964,500.0,0.00053972,120]
[331526649,1720447142078,500.0,0.00050136,120]
[331526650,1720447142191,500.0,0.00050958,120]
[331526651,1720447142311,500.0,0.00054246,120]
[331526652,1720447142427,500.0,0.0005041,120]
[331526653,1720447142544,500.0,0.00051232,120]
[331526654,1720447142665,500.0,0.00049315,120]
[331526655,1720447142779,613.74952704,0.0005452,120]
[331526656,1720447142894,505.2914918,0.00050684,120]
[331526657,1720447143008,500.0,0.00049589,120]
[331526658,1720447143118,500.0,0.00051506,120]
[331526659,1720447143238,217.21531888,0.0005178,120]
[331526660,1720447143356,500.0,0.00049863,120]
[331526661,1720447143487,359.68,0.00050136,120]
[331526662,1720447143631,500.0,0.00049315,120]
[331526663,1720447143758,500.0,0.00049589,120]
[331526664,1720447143882,500.0,0.00049315,120]
[331526665,1720447144004,500.0,0.00049863,120]
[331526666,1720447144129,500.0,0.00049589,120]
[331526667,1720447144245,500.0,0.00050136,120]
[331526668,1720447144377,500.0,0.00049863,120]
[331526669,1720447144507,500.0,0.00049315,120]
[331526670,1720447144637,500.0,0.0005041,120]
[331526671,1720447144769,500.0,0.00050136,120]
[331526672,1720447144891,500.0,0.00049589,120]
[331526673,1720447145004,500.0,0.00050684,120]
[331526674,1720447145118,500.0,0.0005041,120]
[331526675,1720447145231,500.0,0.00049863,120]
[331526676,1720447145348,500.0,0.00050684,120]
[331526677,1720447145463,500.0,0.00050136,120]
[331526678,1720447145578,503.54475179,0.00050958,120]
[331526679,1720447145694,500.0,0.0005041,120]
[331526680,1720447145809,500.0,0.00050958,120]
[331526681,1720447145938,501.56,0.00051232,120]
[331526682,1720447146055,500.0,0.00050684,120]
[331526683,1720447146178,1034.5,0.00049315,120]
[331526684,1720447146294,235.757,0.00052054,30]
[331526685,1720447146429,1034.5,0.00049315,120]
[331526686,1720447146549,500.0,0.00050958,120]
[331526687,1720447146673,1034.5,0.00049315,120]
[331526688,1720447146790,500.0,0.00051232,120]
[331526689,1720447146906,1034.5,0.00049315,120]
[331526690,1720447147030,500.0,0.00051506,120]
[331526691,1720447147153,1034.5,0.00049315,120]
[331526692,1720447147271,500.0,0.0005178,120]
[331526693,1720447147387,500.0,0.00049315,120]
[331526694,1720447147504,1034.5,0.00049315,120]
[331526695,1720447147620,345.74939478,0.00049589,120]
[331526696,1720447147745,1034.5,0.00049315,120]
[331526697,1720447147864,500.0,0.00052054,120]
[331526698,1720447147984,1034.5,0.00049315,120]
[331526699,1720447148258,500.0,0.00052328,120]
[331526700,1720447148378,1034.5,0.00049315,120]
[331526701,1720447148506,319.25966757,0.00052602,120]
[331526702,1720447148638,500.0,0.00049315,120]
[331526703,1720447148769,1034.5,0.00049315,120]
[331526704,1720447148897,500.0,0.00049589,120]
[331526705,1720447149025,1034.5,0.00049315,120]
[331526706,1720447149150,500.0,0.00049863,120]
[331526707,1720447149280,1034.5,0.00049315,120]
[331526708,1720447149424,500.0,0.00050136,120]
[331526709,1720447149552,1034.5,0.00049315,120]
[331526710,1720447149690,1034.5,0.00049315,120]
[331526711,1720447149824,504.16349315,0.0005041,120]
[331526712,1720447149949,500.0,0.00049315,120]
[331526713,1720447150071,1034.5,0.00049315,120]
[331526714,1720447150193,500.0,0.00049589,120]
[331526715,1720447150316,1034.5,0.00049315,120]
[331526716,1720447150436,500.0,0.00049863,120]
[331526717,1720447150558,1034.5,0.00049315,120]
[331526718,1720447150683,336.29049306,0.00050136,120]
[331526719,1720447150801,1034.5,0.00049315,120]
[331526720,1720447150936,1034.5,0.00049315,120]
[331526721,1720447151067,1034.5,0.00049315,120]
[331526722,1720447151180,1034.5,0.00049315,120]
[331526723,1720447151302,500.0,0.00049315,120]
[331526724,1720447151419,1034.5,0.00049315,120]
[331526725,1720447151531,500.0,0.00049589,120]
[331526726,1720447151641,446.62778112,0.00049863,120]
[331526727,1720447151753,1034.5,0.00049315,120]
[331526728,1720447151871,500.0,0.00049315,120]
[331526729,1720447151983,1034.59,0.00049315,120]
[331526730,1720447152094,500.0,0.00049589,120]
[331526731,1720447152218,500.0,0.00049863,120]
[331526732,1720447152337,500.0,0.00050136,120]
[331526733,1720447152463,500.0,0.0005041,120]
[331526734,1720447152595,500.0,0.00050684,120]
[331526735,1720447152712,503.66053821,0.00049315,120]
[331526736,1720447152832,500.0,0.00050958,120]
[331526737,1720447152950,501.51537647,0.00049315,120]
[331526738,1720447153063,503.78857977,0.00051232,120]
[331526739,1720447153261,500.0,0.00049315,120]
[331526740,1720447153533,500.0,0.00049589,120]
[331526741,1720447153665,500.0,0.00049315,120]
[331526742,1720447153836,171.35579722,0.00049863,120]
[331526743,1720447153955,500.0,0.00049589,120]
[331526744,1720447154073,1000.0,0.00068493,30]
[331526745,1720447154206,537.12878316,0.00049315,120]
[331526746,1720447154492,500.0,0.00049863,120]
[331526747,1720447154729,1000.0,0.00068493,30]
[331526748,1720447154881,500.0,0.00050136,120]
[331526749,1720447155008,500.0,0.00049315,120]
[331526750,1720447155150,500.0,0.0005041,120]
[331526751,1720447155274,1000.0,0.00068493,30]
[331526752,1720447155393,500.0,0.00049589,120]
[331526753,1720447155521,500.0,0.00050684,120]
[331526754,1720447155645,500.0,0.00049863,120]
[331526755,1720447155762,1000.0,0.00068493,30]
[331526756,1720447155884,500.0,0.00050958,120]
[331526757,1720447156000,292.78,0.00050136,120]
[331526758,1720447156116,500.0,0.00051232,120]
[331526759,1720447156283,1000.0,0.00068493,30]
[331526760,1720447156404,500.0,0.00051506,120]
[331526761,1720447156650,500.0,0.0005178,120]
[331526762,1720447156767,1000.0,0.00068493,30]
[331526763,1720447156928,500.0,0.00052054,120]
[331526764,1720447157229,1000.0,0.00068493,30]
[331526765,1720447157345,500.0,0.00052328,120]
[331526766,1720447157479,500.0,0.00052602,120]
[331526767,1720447157590,7924.14851562,0.00068493,30]
[331526768,1720447157708,1000.0,0.00068493,30]
[331526769,1720447157826,500.0,0.00049315,120]
[331526770,1720447157945,41061.0914784,0.00068493,30]
[331526771,1720447158073,500.0,0.00049589,120]
[331526772,1720447158187,500.0,0.00052876,120]
[331526773,1720447158507,500.0,0.00049863,120]
[331526774,1720447158633,500.0,0.0005315,120]
[331526775,1720447158760,500.0,0.00050136,120]
[331526776,1720447158883,361.62,0.00053424,120]
[331526777,1720447159006,500.0,0.0005041,120]
[331526778,1720447159234,500.0,0.00049315,120]
[331526779,1720447159367,579.66,0.00049315,120]
[331526780,1720447159509,499.57539508,0.00050684,120]
[331526781,1720447159643,500.0,0.00049589,120]
[331526782,1720447159772,579.66,0.00049589,120]
[331526783,1720447159907,500.0,0.00049863,120]
[331526784,1720447160032,579.66,0.00049863,120]
[331526785,1720447160162,1191.71,0.00049315,120]
[331526786,1720447160274,500.0,0.00050136,120]
[331526787,1720447160383,579.66,0.00050136,120]
[331526788,1720447160503,299.7,0.0005041,120]
[331526789,1720447160623,579.66,0.0005041,120]
[331526790,1720447160748,557.04908861,0.00049315,120]
[331526791,1720447160864,579.66,0.00050684,120]
[331526792,1720447160985,1191.71,0.00049589,120]
[331526793,1720447161101,579.66,0.00050958,120]
[331526794,1720447161148,1191.71,0.00049863,120]
[331526795,1720447161195,579.66,0.00051232,120]
[331526796,1720447161236,1191.71,0.00050136,120]
[331526797,1720447161413,579.66,0.00051506,120]
[331526798,1720447161498,552.0,0.00068493,30]
[331526799,1720447161540,1191.71,0.0005041,120]
[331526800,1720447161656,579.66,0.0005178,120]
[331526801,1720447161806,1191.71,0.00050684,120]
[331526802,1720447161935,579.66,0.00052054,120]
[331526803,1720447162075,1191.71,0.00050958,120]
[331526804,1720447162208,579.66,0.00052328,120]
[331526805,1720447162376,1191.71,0.00051232,120]
[331526806,1720447162470,579.66,0.00052602,120]
[331526807,1720447162695,1191.71,0.00051506,120]
[331526808,1720447162749,579.66,0.00052876,120]
[331526809,1720447162828,500.0,0.00049315,120]
[331526810,1720447162911,502.07633525,0.00049315,120]
[331526811,1720447162951,1191.71,0.0005178,120]
[331526812,1720447163042,579.66,0.0005315,120]
[331526813,1720447163188,170.6867741,0.00049589,120]
[331526814,1720447163228,1191.71,0.00052054,120]
[331526815,1720447163304,579.66,0.00053424,120]
[331526816,1720447163480,1191.71,0.00052328,120]
[331526817,1720447163572,579.66,0.00053698,120]
[331526818,1720447163761,1191.71,0.00052602,120]
[331526819,1720447163856,579.66,0.00053972,120]
[331526820,1720447164043,1191.71,0.00052876,120]
[331526821,1720447164103,579.66,0.00054246,120]
[331526822,1720447164342,1191.71,0.0005315,120]
[331526823,1720447164420,579.66,0.0005452,120]
[331526824,1720447164546,2500.0,0.00051506,120]
[331526825,1720447164696,579.66,0.00054794,120]
[331526826,1720447164842,2500.0,0.00051506,120]
[331526827,1720447164895,1191.71,0.00053424,120]
[331526828,1720447165255,579.66,0.00055068,120]
[331526829,1720447165449,2500.0,0.00051506,120]
[331526830,1720447165511,1191.71,0.00053698,120]
[331526831,1720447165782,2500.0,0.00051506,120]
[331526832,1720447165826,1191.71,0.00053972,120]
[331526833,1720447165927,579.66,0.00055342,120]
[331526834,1720447166056,1191.71,0.00054246,120]
[331526835,1720447166108,2500.0,0.00051506,120]
[331526836,1720447166192,579.72,0.00055616,120]
[331526837,1720447166326,1191.71,0.0005452,120]
[331526838,1720447166441,655.54,0.00051506,120]
[331526839,1720447166630,1191.71,0.00054794,120]
[331526840,1720447166905,1191.71,0.00055068,120]
[331526841,1720447166946,504.27561492,0.00049315,120]
[331526842,1720447167502,1191.71,0.00055342,120]
[331526843,1720447167809,1191.77288413,0.00055616,120]
[331526844,1720447168651,500.0,0.00049315,120]
[331526845,1720447168696,502.94006916,0.00049315,120]
[331526846,1720447168743,500.0,0.00049589,120]
[331526847,1720447168902,500.0,0.00049863,120]
[331526848,1720447169139,506.7523065,0.00049315,120]
[331526849,1720447169182,500.0,0.00050136,120]
[331526850,1720447169479,151.0,0.000666,120]
[331526851,1720447169624,500.0,0.0005041,120]
[331526852,1720447169898,500.0,0.00050684,120]
[331526853,1720447170143,500.0,0.00050958,120]
[331526854,1720447170431,500.0,0.00051232,120]
[331526855,1720447170699,492.82,0.00051506,120]
[331526856,1720447171192,507.27566409,0.00049315,120]
[331526858,1720447187154,-500.0,0.00012421,2]
[331526859,1720447188730,-500.0,0.00012421,2]
[331526860,1720447190110,-500.0,0.00012421,2]
[331526861,1720447191466,-500.0,0.00012421,2]
[331526862,1720447192751,-500.0,0.00012421,2]
[331526863,1720447194010,-500.0,0.00012421,2]
[331526864,1720447195340,-500.0,0.00012421,2]
[331526865,1720447766499,3394.60860961,0.00011199,2]
[331526873,1720447832615,-3082.03617125,0.00012321,2]
[331526874,1720447832626,-1750.0,0.00012321,2]
[331526875,1720447832638,-560.05416974,0.00012321,2]